Cogmind - Beta 17 @@@ ROGUE MODE // 2026.07.29 @ 20:14:40 Player: KURIIRI Result: Self-destructed Performance ------------- Evolutions (4) 2000 Regions Visited (5) 1000 Robots Destroyed (68) 340 Value Destroyed (1858) 1858 Prototype IDs (26) 520 Alien Tech Used (0) 0 Bonus (10509) 10509 TOTAL SCORE: 16227 Bonus ------- High Alert Combat Kills 31 Follower Combat Kills 251 Prayed to X0-1V1 5000 Major X0-1V1 Interference 4600 Registered with UFD 300 Met Optimus in HQ 500 Friendly Fire -173 Cogmind --------- Core Integrity 649/800 Matter 395/400 Energy 260/350 System Corruption 23% Temperature Cool (0) Movement Walking (113) Location -6/Waste Parts ------- > --- POWER (2) -------- Angular Momentum Engine Light Angular Momentum Engine > --- PROPULSION (4+3) - Carbon-fiber Leg (+) Improved Titanium Leg (+) Arachnoskeleton > --- UTILITY (5) ------ Improved Cooling System High-capacity Storage Unit Seismic Detector Makeshift System Shield X0-1V1's Piety Tracker > --- WEAPON (4) ------- Improved Medium Laser Gatling Laser Gatling Laser Precision Assault Rifle > --- INVENTORY (20) --- Heavy Treads Scrap Suit Improved Heat Sink Improved Cooling System Medium Matter Pod (100) Advanced Sensor Array Experimental Sensor Array Recoil Stabilizer Hardened Heavy Armor Plating Improved Medium Armor Plating Force Field Improved System Restoration Module Recalibrator Long-range Missile Launcher Multitool Power Sword Power Sword Peak State ------------ > --- POWER ------------ Angular Momentum Engine Light Angular Momentum Engine > --- PROPULSION ------- Carbon-fiber Leg Improved Titanium Leg Arachnoskeleton Armored Wheel > --- UTILITY ---------- Improved Cooling System High-capacity Storage Unit Seismic Detector Improved Light Armor Plating X0-1V1's Piety Tracker > --- WEAPON ----------- Improved Medium Laser Precision Assault Rifle Mini Assault Cannon Mini Assault Cannon > --- INVENTORY -------- Light Deuterium Engine Medium Treads Scrap Suit Improved Heat Sink Improved Cooling System Medium Matter Pod Advanced Sensor Array Experimental Sensor Array Recoil Stabilizer Improved Medium Armor Plating Force Field Makeshift System Shield Recalibrator Gatling Laser Phase Cannon Long-range Missile Launcher Multitool Power Sword Power Sword [Rating: 88] Favorites ----------- Power Reinforced Ion Engine Engine Reinforced Ion Engine Power Core Light Fission Core Propulsion Armored Wheel Treads Light Treads Leg Arachnoskeleton Wheel Armored Wheel Utility High-capacity Storage Unit Device X0-1V1's Piety Tracker Storage High-capacity Storage Unit Hackware Makeshift System Shield Protection Improved Light Armor Plating Weapon Improved Light Cannon Energy Gun Improved Medium Laser Energy Cannon Subdweller Beam Cannon Ballistic Gun Subdweller Machine Gun Ballistic Cannon Improved Light Cannon Launcher Grenade Launcher Slashing Weapon Scythe Build | -11 -10 -10 -9 -6 -6 ------- Run | Yrd Mat Sub Scr Fac Was Slots Evolved 8 | . . . . 8 . Power . | . . . . . . Propulsion 2 | . . . . 2 . Utility 3 | . . . . 3 . Weapon 3 | . . . . 3 . Parts Attached 51 | 3 5 13 4 26 . Power 7 | . 1 . 1 5 . Engine 6 | . 1 . . 5 . Core 1 | . . . 1 . . Reactor . | . . . . . . Propulsion 10 | 2 . 4 1 3 . Treads 3 | 2 . 1 . . . Leg 3 | . . . . 3 . Wheel 4 | . . 3 1 . . Hover . | . . . . . . Flight . | . . . . . . Utility 13 | 1 2 1 1 8 . Device 9 | 1 1 1 1 5 . Storage 1 | . 1 . . . . Processor . | . . . . . . Hackware 1 | . . . . 1 . Protection 2 | . . . . 2 . Artifact . | . . . . . . Weapon 21 | . 2 8 1 10 . Energy Gun 4 | . . . . 4 . Energy Cannon 3 | . . 3 . . . Ballistic Gun 3 | . . 2 . 1 . Ballistic Cannon 5 | . 2 . 1 2 . Launcher 3 | . . 3 . . . Special Weapon . | . . . . . . Impact Weapon . | . . . . . . Slashing Weapon 3 | . . . . 3 . Piercing Weapon . | . . . . . . Special Melee Weapon . | . . . . . . Unidentified Prototypes 4 | . 1 1 . 2 . Parts Lost 8 | . . 5 . 2 1 Power 2 | . . 1 . 1 . Propulsion 3 | . . 2 . . 1 Utility 1 | . . . . 1 . Weapon 2 | . . 2 . . . Highest Loss Streak 2 | . . 2 . 1 1 To Critical Strikes . | . . . . . . Average Backups 16 | 6 16 17 16 16 17 Power . | 1 2 . . . . Propulsion 2 | 4 2 2 2 . 1 Utility 7 | . 3 5 7 10 12 Weapon 5 | 1 9 7 5 3 3 Tool/Special . | . . . . . . Unused Backups 47 | 6 3 13 8 4 13 Power 4 | 1 1 2 . . . Propulsion 7 | 2 . 2 1 . 2 Utility 20 | 1 . 2 6 2 9 Weapon 15 | 2 2 7 1 2 1 Tool/Special 1 | . . . . . 1 Average Slot Usage (%) 77 | . 100 94 63 75 82 Engine 13 | . 14 14 14 9 11 Core 1 | . . . 3 . . Treads 8 | . 28 20 . . . Leg 2 | . . . . 13 16 Wheel 11 | . . 4 21 5 4 Device 11 | . 14 10 9 16 16 Storage 12 | . 14 13 14 5 5 Energy Gun 1 | . . 1 . 5 16 Energy Cannon 3 | . . 9 . 2 . Ballistic Gun 3 | . 7 7 . . 5 Ballistic Cannon 5 | . 20 10 . 5 . Peak Build Rating 88 | 7 24 26 35 88 87 Average Rating 28 | 6 10 19 21 76 86 On Entrance 27 | 6 7 24 13 28 87 Avg Prop Armor Cover (%) 3 | . . . 9 3 3 Naked Turns . | . . . . . . Heaviest Build 84 | 13 54 66 63 84 81 Greatest Support 85 | 40 40 40 24 85 85 Greatest Overweight (x) 6 | . 1 6 4 1 . Average Overweight (x) 2 | . . 2 2 . . Largest Inventory Capacity 20 | 8 20 20 20 20 20 Average Capacity 19 | 8 18 19 20 20 20 Most Carried 20 | 6 20 20 20 20 20 Average Carried 18 | 5 16 19 19 17 19 Final Capacity 20 | 8 20 20 20 20 20 Final Carried 20 | 4 20 19 20 20 20 Class Distribution -------------------- 82% | Mutant 5% | Scavenger-Tank 5% | Gunner Dominant Class ---------------- Mutant | -10/Materials Mutant | -10/Subcaves Mutant | -9/Scraptown Scavenger-Tank | -6/Factory Scavenger-Gunner | -6/Waste Resources | -11 -10 -10 -9 -6 -6 ----------- Run | Yrd Mat Sub Scr Fac Was Matter Collected 2213 | 280 394 682 31 684 142 Remotely . | . . . . . . Salvage Created 2310 | 91 503 657 . 789 270 Parts 127 | 8 37 37 . 42 3 Haulers Intercepted 3 | . 1 . . 2 . Recyclers Shooed 3 | . 2 . . 1 . Parts Field Recycled . | . . . . . . Retrieved Matter . | . . . . . . Parts Self-Destructed 27 | . . 27 . . . Prevented . | . . . . . . Parts Restored . | . . . . . . Kills | -11 -10 -10 -9 -6 -6 ------- Run | Yrd Mat Sub Scr Fac Was Combat Hostiles Destroyed 42 | . 10 20 . 11 1 Melee 3 | . . . . 3 . Guns 3 | . . 1 . 1 1 Cannons 22 | . 10 8 . 4 . AOE 13 | . . 10 . 3 . Classes Destroyed 17 | 2 8 4 . 2 1 Worker 7 | . 3 . . 4 . Builder 3 | . 1 . . 2 . Tunneler 2 | 2 . . . . . Hauler 3 | . 1 . . 2 . Recycler 5 | 1 3 . . 1 . Mechanic 1 | . 1 . . . . Operator 1 | . 1 . . . . Turret 1 | . . 1 . . . Watcher 2 | . 1 . . 1 . Swarmer 6 | . 3 3 . . . Grunt 24 | . 7 12 . 5 . Sentry 3 | . . 1 . 2 . Hunter 2 | . . . . 2 . Programmer 2 | . . . . 2 . Compactor 1 | . . . . . 1 Artisan 2 | . . 2 . . . Subdweller 5 | . . 5 . . . Best Kill Streak 10 | 2 10 6 . 9 1 Combat Bots Only 6 | . 4 6 . 3 1 Max Kills in Single Turn 2 | 1 2 2 . 2 1 Gunslinging . | . . . . . . Exploded 2 | . . 2 . 2 . Melee 1 | . . . . 1 . Uniques/NPCs Destroyed . | . . . . . . Combat | -11 -10 -10 -9 -6 -6 -------- Run | Yrd Mat Sub Scr Fac Was Hostile Shots Fired 256 | . 31 85 . 140 . Missed 90 | . 10 26 . 54 . Hits 166 | . 21 59 . 86 . Projectile 166 | . 21 59 . 86 . AOE 1 | . . 1 . . . Critical Strikes 3 | . . 2 . 1 . Damage Taken 2382 | . 230 826 . 972 354 Core 331 | . 11 131 . 72 117 Absorbed by Shields 77 | . . 77 . . . Ignored by Resistances 18 | . . 18 . . . Core Remaining (%) 94 | 100 . . 88 . . Volleys Fired 151 | 12 34 64 . 29 12 Largest 4 | 2 2 3 . 4 3 Hottest 216 | 40 66 146 . 204 216 Shots Fired 306 | 24 68 93 . 90 31 Gun 86 | 24 . 18 . 13 31 Cannon 202 | . 68 60 . 74 . Launcher 18 | . . 15 . 3 . Special . | . . . . . . Kinetic 183 | 24 68 33 . 56 2 Thermal 99 | . . 39 . 31 29 Explosive 18 | . . 15 . 3 . Electromagnetic 6 | . . 6 . . . Robot Hit Streak 14 | 4 12 8 . 14 10 Robot Miss Streak 4 | 3 4 3 . 3 3 Penetration Max . | . . . . . . Secondary Targets . | . . . . . . Shots Hit Robots 181 | 13 39 42 . 62 25 Core Hits 110 | 4 23 39 . 37 7 Critical Kills . | . . . . . . Critical Parts Destroyed . | . . . . . . Critical Strikes 4 | . 2 . . 2 . Blast 4 | . 2 . . 2 . Melee Attacks 13 | . . . . 13 . Impact . | . . . . . . Slashing 13 | . . . . 13 . Piercing . | . . . . . . Sneak Attacks 5 | . . . . 5 . Combat Hostiles . | . . . . . . Follow-up Attacks . | . . . . . . Damage Inflicted 5755 | 169 981 1604 . 2397 604 Guns 1138 | 169 . 225 . 140 604 Cannons 2711 | . 978 586 . 1147 . Explosions 1312 | . . 793 . 519 . Melee 579 | . . . . 579 . Ramming 15 | . 3 . . 12 . Kinetic 2320 | 169 978 288 . 848 37 Thermal 1489 | . . 483 . 439 567 Explosive 1312 | . . 793 . 519 . Electromagnetic 40 | . . 40 . . . Impact . | . . . . . . Slashing 579 | . . . . 579 . Piercing . | . . . . . . Highest Corruption 23 | . . 18 . . 23 Average Corruption 5 | . . 4 . . 11 Corruption Purged . | . . . . . . Corruption Blocked . | . . . . . . Effects 39 | . . 34 . . 5 Message Errors 9 | . . 9 . . . Matter Fused 11 | . . 10 . . 1 Heat Flow Errors 5 | . . 4 . . 1 Energy Discharges 6 | . . 4 . . 2 Parts Fused 1 | . . 1 . . . Data Loss (minor) 4 | . . 4 . . . Alerts 1 | . . 1 . . . Weapon Failures 2 | . . 1 . . 1 Overload Shots . | . . . . . . Overflow Damage 67 | . 3 3 . 61 . Projectiles 7 | . 3 1 . 3 . Explosions 2 | . . 2 . . . Melee 58 | . . . . 58 . Knockbacks 10 | . 3 1 . 6 . Impact . | . . . . . . Kinetic 10 | . 3 1 . 6 . Secondary . | . . . . . . Self-Inflicted Damage 24 | . . 24 . . . Shots 1 | . . 1 . . . Rammed 1 | . 1 . . . . Targets Rammed 2 | . 1 . . 1 . Kicked 1 | . . . . 1 . Crushed . | . . . . . . Highest Temperature 449 | 6 135 449 . 132 386 Average Temperature 96 | 6 39 164 . 49 148 Received Heat Transfer 714 | . 93 525 . 96 . Effects 2 | . . 2 . . . Energy Bleed 2 | . . 2 . . . Siege Activations . | . . . . . . Martial Activations . | . . . . . . Shielding Activations . | . . . . . . Robots Disrupted . | . . . . . . Combat Hostiles . | . . . . . . Robots Corrupted . | . . . . . . Combat Hostiles . | . . . . . . Parts Fried . | . . . . . . Impact Corruptions . | . . . . . . Robots Melted . | . . . . . . Combat Hostiles . | . . . . . . Parts Melted 1 | . . . . 1 . Heat Transferred 2802 | . . 703 . 814 1285 Parts Sabotaged . | . . . . . . Parts Stolen . | . . . . . . Parts Stripped . | . . . . . . Power Chain Reactions . | . . . . . . Alert | -11 -10 -10 -9 -6 -6 ------- Run | Yrd Mat Sub Scr Fac Was Maximum Alert Level 2 | . 1 . . 2 . Low Security (%) 73 | 100 97 . . 52 100 Level 1 10 | . 2 . . 18 . Level 2 15 | . . . . 29 . Level 3 . | . . . . . . Level 4 . | . . . . . . Level 5 . | . . . . . . High Security . | . . . . . . Max Security . | . . . . . . Peak Influence 474 | 10 203 . . 474 150 Initial 150 | . . . . . 150 Average 165 | 1 96 . . 234 119 Influence Increases 1632 | 15 316 499 . 802 . Destroy 0b10 Robot/C 940 | . 200 440 . 300 . Destroy 0b10 Robot/NC 120 | 15 55 . . 50 . Destroy Leader 130 | . 44 10 . 76 . Allied During Kill 31 | . . 19 . 12 . Successful Hack 5 | . . . . 5 . Disable Machine 75 | . 15 . . 60 . Destroy Structure 25 | . 2 . . 23 . Lose Combat Pursuer 30 | . . 30 . . . Miscellaneous 276 | . . . . 276 . Influence Decreases 1572 | 15 177 436 202 371 371 Entered New Map 550 | . . 67 202 . 281 Time Decay 845 | 15 177 239 . 354 60 Lost Part 77 | . . 50 . 17 10 Lost Ally 100 | . . 80 . . 20 Squads Dispatched 8 | . 1 . . 7 . Investigation 2 | . . . . 2 . Extermination 3 | . . . . 3 . Reinforcement 3 | . 1 . . 2 . Assault . | . . . . . . Garrison . | . . . . . . Intercept . | . . . . . . Searches Triggered . | . . . . . . Construction Impeded . | . . . . . . Haulers Reinforced . | . . . . . . Active Scanning Responses . | . . . . . . Cargo Convoy Interrupts . | . . . . . . Stealth | -11 -10 -10 -9 -6 -6 --------- Run | Yrd Mat Sub Scr Fac Was Distress Signals 2 | . 2 . . . . Communications Jammed . | . . . . . . Distress Signals . | . . . . . . Times Spotted 75 | . 17 37 . 15 6 Peak Tracking Total 6 | . 6 5 . 3 5 Tactical Retreats 3 | . . 2 . . 1 Traps | -11 -10 -10 -9 -6 -6 ------- Run | Yrd Mat Sub Scr Fac Was Traps Triggered 2 | . . 1 . 1 . Indirectly . | . . . . . . Trap Hack Attempts . | . . . . . . Triggered . | . . . . . . Disarmed . | . . . . . . Reprogrammed . | . . . . . . Reused . | . . . . . . Traps Extracted . | . . . . . . Installed . | . . . . . . Triggered . | . . . . . . Machines | -11 -10 -10 -9 -6 -6 ---------- Run | Yrd Mat Sub Scr Fac Was Machines Disabled 6 | . 1 1 . 4 . Max in Single Turn 4 | . 1 1 . 4 . Machines Repaired . | . . . . . . Machines Dismantled . | . . . . . . Machines Sabotaged . | . . . . . . Overloaded Fab Kills . | . . . . . . Hacking | -11 -10 -10 -9 -6 -6 --------- Run | Yrd Mat Sub Scr Fac Was Machines Accessed 7 | . 1 1 2 3 . Terminals 3 | . 1 . . 2 . Fabricators . | . . . . . . Repair Stations . | . . . . . . Recycling Units 1 | . . . . 1 . Scanalyzers . | . . . . . . Garrison Access . | . . . . . . Total Hacks 14 | . 1 1 6 6 . Successful 9 | . . 1 6 2 . Failed 5 | . 1 . . 4 . Catastrophic 1 | . 1 . . . . Database Lockouts . | . . . . . . Manual 8 | . 2 . . 6 . Terminals 6 | . 1 . . 5 . Fabricators . | . . . . . . Repair Stations . | . . . . . . Recycling Units 1 | . . . . 1 . Scanalyzers . | . . . . . . Garrison Access . | . . . . . . Terminal Hacks 7 | . . 1 6 . . Record 5 | . . . 5 . . Open Door 1 | . . . 1 . . Proto ID Catalog 1 | . . 1 . . . Fabricator Hacks . | . . . . . . Repair Station Hacks . | . . . . . . Recycling Unit Hacks . | . . . . . . Scanalyzer . | . . . . . . Garrison Access Hacks . | . . . . . . Unauthorized Hacks 2 | . . . . 2 . Terminals 1 | . . . . 1 . Botnet 1 | . . . . 1 . Fabricators . | . . . . . . Repair Stations . | . . . . . . Recycling Units 1 | . . . . 1 . Fedlink 1 | . . . . 1 . Scanalyzers . | . . . . . . Garrison Access . | . . . . . . Data Cores Recovered 1 | . 1 . . . . Used . | . . . . . . Hacking Detections 3 | . 1 . . 2 . Full Trace Events 1 | . . . . 1 . Feedback Events . | . . . . . . Feedback Blocked . | . . . . . . Robot Schematics Acquired . | . . . . . . Robots Built . | . . . . . . Authchips . | . . . . . . Time . | . . . . . . Total Robot Build Rating . | . . . . . . Part Schematics Acquired . | . . . . . . Parts Built . | . . . . . . Authchips . | . . . . . . Time . | . . . . . . Total Part Build Rating . | . . . . . . Part Studies Acquired . | . . . . . . Parts Repaired . | . . . . . . Time . | . . . . . . Parts Recycled . | . . . . . . Recycled Matter . | . . . . . . Retrieved Matter . | . . . . . . Retrieved Components . | . . . . . . Parts Scanalyzed . | . . . . . . Part Schematics Acquired . | . . . . . . Parts Damaged . | . . . . . . Bothacking | -11 -10 -10 -9 -6 -6 ------------ Run | Yrd Mat Sub Scr Fac Was Used RIF Installer . | . . . . . . Robots Hacked . | . . . . . . Non-combat . | . . . . . . Combat . | . . . . . . Robot Hacks Applied . | . . . . . . Relay Couplers Released . | . . . . . . Fabnet Peak Effective % . | . . . . . . Robots Rewired . | . . . . . . Allies Hacked . | . . . . . . Hacks Repelled . | . . . . . . Allies | -11 -10 -10 -9 -6 -6 -------- Run | Yrd Mat Sub Scr Fac Was Total Allies 12 | . . 10 1 . 1 Largest Group 6 | . . 6 1 1 1 Highest-Rated Group 70 | . . 70 57 57 31 Highest-Rated Ally 57 | . . 19 57 57 31 Initial UFD Resources 33 | . . . . 23 33 Total Orders 1 | . . . . 1 . STAY 1 | . . . . 1 . Ally Attacks 97 | . . 57 . 11 29 Total Damage 1363 | . . 521 . 359 483 Kills 13 | . . 9 . 4 . Allies Corrupted . | . . . . . . Allies Melted . | . . . . . . X0-1V1 Amusement Gains 87 | . 22 . . 65 . Good Acts 43 | . . 40 . 3 . Bad Acts 69 | . . 57 . 9 3 Intel | -11 -10 -10 -9 -6 -6 ------- Run | Yrd Mat Sub Scr Fac Was Active Infowar (turns) 1283 | 10 566 . . 585 122 Sensors 115 | . . . . 115 . Seismic 1276 | 10 566 . . 578 122 Robot Analysis Total . | . . . . . . Derelict Logs Recovered 1 | . . 1 . . . Drone Launches . | . . . . . . Drone Recoveries . | . . . . . . Exploration | -11 -10 -10 -9 -6 -6 ------------- Run | Yrd Mat Sub Scr Fac Was Turns Passed 6570 | 83 571 1932 2999 863 122 Spaces Moved 3684 | 6 182 739 2152 535 70 Core . | . . . . . . Treads 638 | 4 182 452 . . . Legs 607 | 2 . . . 535 70 Wheels 2439 | . . 287 2152 . . Hover . | . . . . . . Flight . | . . . . . . Fastest Speed 110 | 120 160 112 120 110 113 Average Speed 149 | 146 226 205 133 112 113 Slowest Speed 360 | 160 240 360 150 190 113 Overloaded Moves . | . . . . . . Propulsion Burnouts . | . . . . . . Robots Hopped . | . . . . . . Potential Cave-ins 1 | . . . . . 1 Cave-ins Triggered 1 | . . . . . 1 Exploration Rate (%) 44 | 2 35 53 89 18 69 Regions Visited 5 Branch Regions 2 Pre-discovered Areas . | . . . . . . Known Exits Taken . | . . . . . . Unknown Exits Taken 4 | 1 1 1 1 . . Scrap Searched 15 | . . 12 3 . . Spaces Dug 2 | . . 1 . 1 . Terrain Destroyed 132 | . 2 106 . 24 . Melee 1 | . . . . 1 . Projectile 17 | . 2 8 . 7 . AOE 114 | . . 98 . 16 . Terrain Rammed . | . . . . . . Walls Destroyed . | . . . . . . Machines Disabled . | . . . . . . Actions | -11 -10 -10 -9 -6 -6 --------- Run | Yrd Mat Sub Scr Fac Was Total 4473 | 57 272 1066 2280 713 85 Wait 420 | 35 28 199 96 62 . Move 3679 | 5 181 738 2151 535 69 Hop . | . . . . . . Pick Up 74 | . 19 25 14 15 1 Fast Attach 20 | 1 . 4 2 13 . Attach 17 | 2 . 4 2 9 . Detach 9 | . . 2 1 6 . Swap 32 | . 5 13 . 14 . Drop 55 | 2 4 17 14 16 2 Fire 151 | 12 34 64 . 29 12 Melee 13 | . . . . 13 . Ram . | . . . . . . Kick 1 | . . . . 1 . Crush 1 | . 1 . . . . Escape Stasis 1 | . . . . . 1 Rewire . | . . . . . . Trap . | . . . . . . Miscellaneous . | . . . . . . Route ------- -11/Scrapyard -10/Materials (discovered 2 exits: [*Mat] / *Sub) -10/Subcaves (discovered 3 exits: *Mat / [*Rec] / *Scr) -9/Scraptown (discovered 2 exits: *Fac x2) -6/Factory -6/Waste (discovered 1 exit: [*Fac]) History --------- Turn | Location | Event 52 | -11/Scrapyard | Discovered new exit (range 2) 84 | -11/Scrapyard | Entered Materials 300 | -10/Materials | Build established: Mutant 490 | -10/Materials | Discovered new exit (range 8) 542 | -10/Materials | Discovered new exit (range 7) 650 | -10/Materials | Prayed at D.C.S.S. Altar Unit 655 | -10/Materials | Entered Subcaves 656 | -10/Subcaves | Approached by a straggling Scientist 711 | -10/Subcaves | Discovered new exit (range 11) 930 | -10/Subcaves | Visited 4L-MR0's lab 956 | -10/Subcaves | Learned Materials emergency access door positions 963 | -10/Subcaves | Found Arachnoskeleton 1242 | -10/Subcaves | Core integrity permanently improved by X0-1V1 (+200) 1285 | -10/Subcaves | A swath of the cavern ceiling suddenly collapsed 1348 | -10/Subcaves | Shifting Twisted Machinery released Sub. Monowheel 1453 | -10/Subcaves | Ambushed by Subdweller buried in earth 1593 | -10/Subcaves | Visited triangular shrine 1608 | -10/Subcaves | Found Prototype Device 1608 | -10/Subcaves | Identified V3-11A's Pendant 1613 | -10/Subcaves | Befriended Subdweller 1648 | -10/Subcaves | Befriended Subdweller 1719 | -10/Subcaves | Scientist uncovered a shortcut to Scraptown 1800 | -10/Subcaves | Shifting Twisted Machinery released Piercing Trap 1839 | -10/Subcaves | Shifting Twisted Machinery released Flamer 1856 | -10/Subcaves | X0-1V1 sent hostile G-34 Mercenary (x4) 1863 | -10/Subcaves | Discovered new exit (range 8) 1863 | -10/Subcaves | X0-1V1 sent you into danger 1880 | -10/Subcaves | Identified exit to Materials 1880 | -10/Subcaves | X0-1V1 revealed exit location to -8/Materials 1896 | -10/Subcaves | X0-1V1 mutated your Utility slot to Weapon slot 1939 | -10/Subcaves | X0-1V1 sent allied S-10 Pest (x2) 1948 | -10/Subcaves | X0-1V1 sent you into danger 1964 | -10/Subcaves | X0-1V1 activates XOMVISION 1990 | -10/Subcaves | Befriended Subdweller 1990 | -10/Subcaves | Befriended Subdweller 2035 | -10/Subcaves | X0-1V1 mutated your Propulsion slot to Power slot 2054 | -10/Subcaves | X0-1V1 rewrote S-10 Pest IFF filter 2092 | -10/Subcaves | System corruption reached 10% 2152 | -10/Subcaves | X0-1V1 sent you into danger 2194 | -10/Subcaves | X0-1V1 activates XOMVISION 2196 | -10/Subcaves | X0-1V1 rewrote S-10 Pest IFF filter 2235 | -10/Subcaves | Disturbed a concealed Subdweller 2236 | -10/Subcaves | X0-1V1 sent allied G-34 Mercenary (x4) 2285 | -10/Subcaves | X0-1V1 rewrote GR-W1Z(R) IFF filter 2368 | -10/Subcaves | X0-1V1 activates XOMVISION 2392 | -10/Subcaves | X0-1V1 mutated your Weapon slot to Utility slot 2444 | -10/Subcaves | X0-1V1 rewrote G-34 Mercenary IFF filter 2449 | -10/Subcaves | Disturbed a concealed Subdweller 2453 | -10/Subcaves | Disturbed a concealed Subdweller 2481 | -10/Subcaves | Lost 3 allies 2487 | -10/Subcaves | X0-1V1 mutated your Weapon slot to Utility slot 2504 | -10/Subcaves | X0-1V1 sent you into danger 2506 | -10/Subcaves | X0-1V1 downgraded hostiles (x1) 2509 | -10/Subcaves | X0-1V1 upgraded hostiles (x1) 2536 | -10/Subcaves | X0-1V1 tapped a No Entrance sign 2537 | -10/Subcaves | Core integrity restored by X0-1V1 (+90) 2546 | -10/Subcaves | X0-1V1 mutated your Utility slot to Propulsion slot 2559 | -10/Subcaves | X0-1V1 rewrote G-34 Mercenary IFF filter 2574 | -10/Subcaves | X0-1V1 sent hostile G-34 Mercenary (x5) 2587 | -10/Subcaves | Entered Scraptown 2587 | -9/Scraptown | System corruption cleaned by C-Scrubber 2842 | -9/Scraptown | Discovered new exit (range 13) 3011 | -9/Scraptown | Delivered V3-11A's Pendant to T0-NE2 in exchange for information 3206 | -9/Scraptown | Visited IN-MT5's Study 3251 | -9/Scraptown | Visited Comm Corps 3353 | -9/Scraptown | Visited Shadow of the Wyrm 3409 | -9/Scraptown | Visited UFD Registry 3409 | -9/Scraptown | Registered with UFD as "Hellnade" 3425 | -9/Scraptown | Visited Assassins FH 3505 | -9/Scraptown | Visited Curators Association 3536 | -9/Scraptown | Visited Botcube Research 3544 | -9/Scraptown | Found Botcube 3569 | -9/Scraptown | Visited Sword Containment 3752 | -9/Scraptown | Visited Chapter 10 3878 | -9/Scraptown | Visited Scrap Suit Storage 3904 | -9/Scraptown | Visited A0-MCA Data Center 3917 | -9/Scraptown | Visited Infowarlord's Domain 3943 | -9/Scraptown | Visited Scrapoid Research Area 3967 | -9/Scraptown | Visited LU-1G1's Boring Crew 3991 | -9/Scraptown | Visited Abandonware Association 4006 | -9/Scraptown | Learned abandonware demo "SHUTEYE.EXE" 4006 | -9/Scraptown | Learned abandonware demo "MELTYB.EXE" 4396 | -9/Scraptown | Visited CPS Storage 4858 | -9/Scraptown | Found Exp. Sensor Array 4885 | -9/Scraptown | Given a B rating by A0-MCA 4890 | -9/Scraptown | Found A0-MCA's Component Scanner 4970 | -9/Scraptown | Found Scrap Suit 5259 | -9/Scraptown | Botcube activated 5277 | -9/Scraptown | Botcube completed mutation into treaded form, armed with 2 cannons 5430 | -9/Scraptown | Found Scrap Suit 5445 | -9/Scraptown | Discovered new exit (range 5) 5512 | -9/Scraptown | Met Optimus 5512 | -9/Scraptown | Accepted into 0bPrime 5586 | -9/Scraptown | Entered Factory 5586 | -6/Factory | Accompanied by 1 ally 5586 | -6/Factory | Evolved 8 slots: Propulsion x2, Utility x3, Weapon x3 5588 | -6/Factory | Attached Arachnoskeleton, gained temporary slots: Propulsion x3 5948 | -6/Factory | Matter capacity permanently improved by X0-1V1 (+500; -250 max core) 6085 | -6/Factory | Discovered new exit (range 9) 6119 | -6/Factory | X0-1V1 redirected Transport squads to designated parking area 6196 | -6/Factory | X0-1V1 added 0b10 threat records associated with you (major) 6197 | -6/Factory | Loaded intel: 8 recycling unit locations 6316 | -6/Factory | Build established: Scavenger-Tank 6449 | -6/Factory | Sucked down chute 6449 | -6/Factory | Entered Waste 6450 | -6/Waste | Met a frightened Derelict 6464 | -6/Waste | EMP discharged 6464 | -6/Waste | System corruption reached 10% 6507 | -6/Waste | Destroyed C-40 Crusher 6512 | -6/Waste | X0-1V1 vaporized surrounding terrain (radius 23) 6512 | -6/Waste | Spotted C-40 Crusher 6521 | -6/Waste | Spotted C-40 Crusher 6530 | -6/Waste | Spotted C-40 Crusher 6530 | -6/Waste | Spotted C-40 Crusher 6537 | -6/Waste | Spotted C-40 Crusher 6553 | -6/Waste | Crushed by falling debris 6556 | -6/Waste | Discovered new exit (range 14) 6564 | -6/Waste | EMP discharged 6571 | -6/Waste | Self-destructed Last Messages --------------- 06551_ Imp. Medium Armor Plating crushed. 06553_ Y1-82B(g) Carbon-fiber Leg crushed. 06553_ Y1-82B(g) Lgt. Angular Momentum Engine crushed. 06553_ Y1-82B(g) Carbon-fiber Leg crushed. 06553_ Y1-82B(g) suffers critical hit (Destroy). 06553_ Y1-82B(g) destroyed. 06553_ The unstable cave ceiling collapses. 06553_ Crushed by falling debris. 06553_ Arm. Wheel destroyed. 06553_ System corrupted by crushing effect (+4). 06554_ ALERT: Foreign system detected. Charging EMP. 06556_ EXIT=FOUND 06557_ Imp. Cooling System crushed. 06564_ 64 Matter fried beyond repair. 06564_ Carbon-fiber Leg fried beyond repair. 06564_ System corrupted (+9). 06565_ System corrupted: Energy discharge (-118). Map ----- +----------------------------------------------------+ | ????????????????????????????????????????????????? | | ????????????????????????????????????????????????? | | ????????????????????????????????????????????????? | | ????????????????????????????????????????????????? | | ????????????????????????????????????????????????? | | ????????????????????????????????????????????????? | | ????????????????????????????????????????????????? | | ????????????????????????????????????????????????? | | ??????????????????????????????????????????? | | ????????????????????????????????????????? | | " """"""??????"""#???????????????????????????? | | " " "?? " ???????????????????????????? | | " " " " ##?????????????????????????? | | " " " ; ##????????????????????????? | | " " " ;;; #????????????????????????? | | " " ; ##???????????????????????? | | " " ; #???????????????????????? | | " " ; #???????????????????????? | | " ; ; ##??????????????????????? | | " " ; ;;; #??????????????????????? | | " " ; ; ;;;;;#######????????????????? | | " " ; ; ; #????????????????? | | " " ; ; ; =#????????????????? | | " " ; ;;;; #????????????????? | | " ; #????????????????? | | !" ; @ #????????????????? | | *" ; < #????????????????? | | %" ; #????????????????? | | " " ; ;;;; = #????????????????? | | " " ; ; ; #????????????????? | | " " ; ; ; #????????????????? | | " " ; ; ;;;;;#######????????????????? | | " """ ""; ;;; ##??????????????????????? | | " #" ; #???????????????????????? | | " " ; #???????????????????????? | | " " ; ##???????????????????????? | | " " ; #????????????????????????? | | " " ; ##????????????????????????? | | " " ; ##?????????????????????????? | | " " " #??????????????????????????? | | " " "##??????????????????????????? | | """""""" """""""""##???????????????????????????? | | ##????????????????????????????? | | ##?????????????????????????????? | | ###??????????????????????????????? | | ##????????????????????????????????? | | ###?????????????????????????????????? | | ####???????????????????????????????????? | | ?? ######???????????????????????????????????????? | | ????????????????????????????????????????????????? | +----------------------------------------------------+ Best States ------------- Heat Dissipation 142 Coolant Potential 50 Energy Generation 31 Energy Capacity 1215 Matter Stores 700 Matter Capacity 800 Sight Range 18 Robot Scan Range 16 Terrain Scan Density 10 Armor Coverage 225 Resistance: TH 15 Evasion (%) 55 Recoil Reduction 2 Defensive Hacking 11 Item Schematics ----------------- None Robot Schematics ------------------ None Fabricated ------------ Nothing Repaired ---------- Nothing Studied --------- None Alien Tech Used ----------------- None Achievements -------------- None Challenges ------------ None Game ------ Seed MinesnifferLaunchShell Manual? 0 Play Time 00:49:02 Cumulative 618.8 hours Start 2026.07.29 @ 04:39:15 End 2026.07.29 @ 20:14:40 Sessions 3 Manual Loads 0 Difficulty Rogue Special Mode None Game No. 552 Rogue 516 Adventurer 36 Explorer 0 Win Type - Total 8 Types 2/2/0/1/1/0/0/2/0/0 Lore% 84 Gallery% 74 Achievement% 67 Wizard Run 0 Options --------- Layout 2 ASCII 0 Keyboard 0 Movement Numpad Keybinds 0 Fullscreen 1 Font 48/Smallcaps Map View 50x44 Zoom Use 0% Tactical HUD 1 Map Filters NONE Filters NONE Steam 1 RUN: 2d4e345a-523f-40e6-8234-729466f53e91